[Event "*** Titled Tuesday Blitz"]
[Site "Chess.com"]
[Date "2018.12.04"]
[Round "1"]
[White "penguingm1"]
[Black "arctic_t00"]
[Result "1-0"]
[WhiteElo "2772"]
[BlackElo "2405"]
[TimeControl "180+2"]
[EndTime "13:06:49 PST"]
[Termination "penguingm1 won by resignation"]

1. d4 {[%clk 0:02:53]} 1... Nf6 {[%clk 0:03:00.2]} 2. c4 {[%clk 0:02:53.4]} 2...
g6 {[%clk 0:03:01.3]} 3. f3 {[%clk 0:02:47.8]} 3... Bg7 {[%clk 0:03:01.5]} 4. e4
{[%clk 0:02:45.7]} 4... d6 {[%clk 0:03:02.2]} 5. Nc3 {[%clk 0:02:45.7]} 5... O-O
{[%clk 0:03:01]} 6. Nge2 {[%clk 0:02:47]} 6... a6 {[%clk 0:03:01.4]} 7. Be3
{[%clk 0:02:47]} 7... Nbd7 {[%clk 0:03:02.2]} 8. Qd2 {[%clk 0:02:46.8]} 8... c5
{[%clk 0:03:02.6]} 9. dxc5 {[%clk 0:02:47.6]} 9... dxc5 {[%clk 0:03:01]} 10. Rd1
{[%clk 0:02:47.2]} 10... Qc7 {[%clk 0:02:48.7]} 11. Bf4 {[%clk 0:02:21]} 11...
Ne5 {[%clk 0:02:44.2]} 12. Nc1 {[%clk 0:02:18.3]} 12... e6 {[%clk 0:02:00.9]}
13. Be2 {[%clk 0:02:07.2]} 13... Nh5 {[%clk 0:01:52.3]} 14. Be3 {[%clk
0:01:57.5]} 14... b6 {[%clk 0:01:49.3]} 15. f4 {[%clk 0:01:58.4]} 15... Nc6
{[%clk 0:01:48.4]} 16. Bxh5 {[%clk 0:01:31.7]} 16... gxh5 {[%clk 0:01:49.1]} 17.
O-O {[%clk 0:01:33.1]} 17... Nd4 {[%clk 0:01:44.8]} 18. Qf2 {[%clk 0:01:31.6]}
18... f5 {[%clk 0:01:35.1]} 19. e5 {[%clk 0:01:31.3]} 19... Bb7 {[%clk
0:01:33.4]} 20. N1e2 {[%clk 0:01:23.3]} 20... Nxe2+ {[%clk 0:01:25.1]} 21. Qxe2
{[%clk 0:01:25.2]} 21... h4 {[%clk 0:01:20.5]} 22. Rd6 {[%clk 0:01:23.8]} 22...
h3 {[%clk 0:01:18.9]} 23. Rxe6 {[%clk 0:01:14.4]} 23... Bxg2 {[%clk 0:01:13.2]}
24. Rd1 {[%clk 0:01:14.5]} 24... b5 {[%clk 0:00:46.1]} 25. Nd5 {[%clk 0:01:14]}
25... Qf7 {[%clk 0:00:44.5]} 26. Rd6 {[%clk 0:00:52.6]} 26... bxc4 {[%clk
0:00:43.2]} 27. e6 {[%clk 0:00:50.8]} 27... Qg6 {[%clk 0:00:39.4]} 28. Ne7+
{[%clk 0:00:51.8]} 28... Kh8 {[%clk 0:00:40.6]} 29. Nxg6+ {[%clk 0:00:53.7]}
29... hxg6 {[%clk 0:00:41.5]} 30. e7 {[%clk 0:00:55.3]} 30... Rfe8 {[%clk
0:00:40]} 31. Bxc5 {[%clk 0:00:54.9]} 1-0

[Event "*** Titled Tuesday Blitz"]
[Site "Chess.com"]
[Date "2018.12.04"]
[Round "1"]
[White "vinniethepooh"]
[Black "dretch"]
[Result "0-1"]
[WhiteElo "2417"]
[BlackElo "2803"]
[TimeControl "180+2"]
[EndTime "13:06:59 PST"]
[Termination "dretch won by resignation"]

1. d4 {[%clk 0:03:01.5]} 1... d5 {[%clk 0:02:51.1]} 2. c4 {[%clk 0:03:02.3]}
2... c6 {[%clk 0:02:52]} 3. Nc3 {[%clk 0:03:02.6]} 3... dxc4 {[%clk 0:02:50.9]}
4. e3 {[%clk 0:02:55.5]} 4... b5 {[%clk 0:02:49.6]} 5. a4 {[%clk 0:02:56.6]}
5... b4 {[%clk 0:02:50.3]} 6. Na2 {[%clk 0:02:56]} 6... e6 {[%clk 0:02:45]} 7.
Bxc4 {[%clk 0:02:54.6]} 7... Nf6 {[%clk 0:02:46]} 8. Ne2 {[%clk 0:02:50]} 8...
Bb7 {[%clk 0:02:43.8]} 9. O-O {[%clk 0:02:49]} 9... Nbd7 {[%clk 0:02:43.3]} 10.
Bd2 {[%clk 0:02:35.8]} 10... a5 {[%clk 0:02:43.5]} 11. b3 {[%clk 0:02:24.7]}
11... Bd6 {[%clk 0:02:39.4]} 12. h3 {[%clk 0:02:13.7]} 12... O-O {[%clk
0:02:36.6]} 13. Nac1 {[%clk 0:01:55.2]} 13... Nb6 {[%clk 0:02:20]} 14. Bd3
{[%clk 0:01:52.1]} 14... c5 {[%clk 0:02:18]} 15. Bb5 {[%clk 0:01:27.6]} 15...
Ne4 {[%clk 0:02:13.9]} 16. Be1 {[%clk 0:01:11.3]} 16... Qg5 {[%clk 0:02:09.6]}
17. f3 {[%clk 0:00:40.2]} 17... Qxe3+ {[%clk 0:01:46.7]} 18. Kh1 {[%clk
0:00:41.3]} 18... Nc3 {[%clk 0:01:45.6]} 19. Bxc3 {[%clk 0:00:27.8]} 19... bxc3
{[%clk 0:01:47.5]} 20. Qd3 {[%clk 0:00:25.2]} 20... cxd4 {[%clk 0:01:45.4]} 21.
Qxd4 {[%clk 0:00:20.8]} 21... Qxd4 {[%clk 0:01:44.1]} 22. Nxd4 {[%clk
0:00:22.7]} 22... Rac8 {[%clk 0:01:38.6]} 23. Nce2 {[%clk 0:00:22.9]} 23... Rfd8
{[%clk 0:01:36.7]} 24. Nc2 {[%clk 0:00:19.1]} 24... Be7 {[%clk 0:01:30.6]} 25.
Rfd1 {[%clk 0:00:18.7]} 25... Rd2 {[%clk 0:01:31.4]} 26. Ne3 {[%clk 0:00:12.6]}
26... Bb4 {[%clk 0:01:25.1]} 27. Rxd2 {[%clk 0:00:10.5]} 27... cxd2 {[%clk
0:01:25.7]} 28. Rd1 {[%clk 0:00:12.4]} 28... Bd5 {[%clk 0:01:20.4]} 29. Nxd5
{[%clk 0:00:11.3]} 29... Nxd5 {[%clk 0:01:20.6]} 30. Ba6 {[%clk 0:00:06.1]}
30... Rc7 {[%clk 0:01:21.4]} 0-1

[Event "*** Titled Tuesday Blitz"]
[Site "Chess.com"]
[Date "2018.12.04"]
[Round "1"]
[White "Alex_Terzi"]
[Black "LyonBeast"]
[Result "0-1"]
[WhiteElo "2444"]
[BlackElo "2911"]
[TimeControl "180+2"]
[EndTime "13:07:00 PST"]
[Termination "LyonBeast won by resignation"]

1. e4 {[%clk 0:02:58.2]} 1... c6 {[%clk 0:03:00.1]} 2. d4 {[%clk 0:02:59.2]}
2... d5 {[%clk 0:03:00.1]} 3. Nc3 {[%clk 0:03:00.7]} 3... dxe4 {[%clk
0:03:00.8]} 4. Nxe4 {[%clk 0:03:02.2]} 4... Nd7 {[%clk 0:03:02.3]} 5. Nf3 {[%clk
0:02:58]} 5... Ngf6 {[%clk 0:03:02.6]} 6. Ng3 {[%clk 0:02:58.5]} 6... e6 {[%clk
0:03:02.9]} 7. Be2 {[%clk 0:02:47.9]} 7... c5 {[%clk 0:03:03]} 8. O-O {[%clk
0:02:45.9]} 8... Qc7 {[%clk 0:03:03.1]} 9. Re1 {[%clk 0:02:32.9]} 9... a6 {[%clk
0:03:00.3]} 10. a4 {[%clk 0:02:28.3]} 10... Be7 {[%clk 0:02:56.3]} 11. c4 {[%clk
0:02:18.1]} 11... cxd4 {[%clk 0:02:49.3]} 12. Nxd4 {[%clk 0:02:18.7]} 12... O-O
{[%clk 0:02:48.5]} 13. Qc2 {[%clk 0:02:08]} 13... Bb4 {[%clk 0:02:39.7]} 14. Rd1
{[%clk 0:01:49.2]} 14... Rd8 {[%clk 0:02:32.8]} 15. Bf1 {[%clk 0:01:49.4]} 15...
Nc5 {[%clk 0:02:30.2]} 16. Bg5 {[%clk 0:01:48.9]} 16... Qe7 {[%clk 0:02:24.5]}
17. Nh5 {[%clk 0:01:42.4]} 17... Nce4 {[%clk 0:02:18.1]} 18. Nxf6+ {[%clk
0:01:01.4]} 18... Nxf6 {[%clk 0:02:17.1]} 19. Nf3 {[%clk 0:01:00]} 19... Bd7
{[%clk 0:02:06.9]} 20. Ne5 {[%clk 0:00:58.9]} 20... h6 {[%clk 0:01:50.8]} 21.
Bxf6 {[%clk 0:00:54.5]} 21... gxf6 {[%clk 0:01:52.7]} 22. Nxd7 {[%clk
0:00:55.5]} 22... Rxd7 {[%clk 0:01:52.7]} 23. Rxd7 {[%clk 0:00:56.9]} 23... Qxd7
{[%clk 0:01:53.9]} 24. Rd1 {[%clk 0:00:57.9]} 24... Qc6 {[%clk 0:01:50.7]} 25.
Qb3 {[%clk 0:00:54.3]} 25... Bf8 {[%clk 0:01:47.7]} 26. g3 {[%clk 0:00:52]}
26... Rb8 {[%clk 0:01:44]} 27. Bg2 {[%clk 0:00:52.7]} 27... Qc5 {[%clk
0:01:43.6]} 28. Qc3 {[%clk 0:00:46.2]} 28... f5 {[%clk 0:01:40.4]} 29. b4 {[%clk
0:00:45.8]} 29... Qxb4 {[%clk 0:01:39.4]} 30. Qxb4 {[%clk 0:00:46.9]} 30... Bxb4
{[%clk 0:01:38.2]} 31. Rd7 {[%clk 0:00:47.3]} 31... b6 {[%clk 0:01:38.7]} 32.
Bb7 {[%clk 0:00:48.4]} 32... a5 {[%clk 0:01:35.4]} 33. Rc7 {[%clk 0:00:43.7]}
33... Kg7 {[%clk 0:01:34.9]} 34. Bf3 {[%clk 0:00:43.9]} 34... Kg6 {[%clk
0:01:34.3]} 35. g4 {[%clk 0:00:33.8]} 35... fxg4 {[%clk 0:01:34.2]} 36. Bxg4
{[%clk 0:00:35]} 36... Rd8 {[%clk 0:01:35]} 37. Kg2 {[%clk 0:00:28.2]} 37... Bc5
{[%clk 0:01:34.9]} 38. f3 {[%clk 0:00:23.7]} 38... Rd2+ {[%clk 0:01:34.5]} 39.
Kg3 {[%clk 0:00:24.9]} 39... Bd6+ {[%clk 0:01:34.6]} 0-1

[Event "*** Titled Tuesday Blitz"]
[Site "Chess.com"]
[Date "2018.12.04"]
[Round "1"]
[White "gkchesstiger"]
[Black "NeverEverForever1990"]
[Result "1-0"]
[WhiteElo "2802"]
[BlackElo "2416"]
[TimeControl "180+2"]
[EndTime "13:07:00 PST"]
[Termination "gkchesstiger won by resignation"]

1. d4 {[%clk 0:03:01.9]} 1... Nf6 {[%clk 0:03:00.3]} 2. Nf3 {[%clk 0:03:03]}
2... e6 {[%clk 0:03:00.8]} 3. Bf4 {[%clk 0:03:03.2]} 3... d5 {[%clk 0:03:01.2]}
4. e3 {[%clk 0:03:04]} 4... c5 {[%clk 0:03:02.5]} 5. Nbd2 {[%clk 0:03:04.6]}
5... Nc6 {[%clk 0:03:03.7]} 6. c3 {[%clk 0:03:05.4]} 6... Bd6 {[%clk 0:03:04.9]}
7. Bg3 {[%clk 0:03:06.6]} 7... Be7 {[%clk 0:03:06]} 8. Ne5 {[%clk 0:03:05.6]}
8... Nxe5 {[%clk 0:03:06.6]} 9. dxe5 {[%clk 0:03:06.2]} 9... Nd7 {[%clk
0:03:07.6]} 10. h4 {[%clk 0:03:06.1]} 10... f6 {[%clk 0:02:45.9]} 11. Qg4 {[%clk
0:02:56]} 11... Nxe5 {[%clk 0:02:22.3]} 12. Qxg7 {[%clk 0:02:55.2]} 12... Ng6
{[%clk 0:02:23.3]} 13. Bd3 {[%clk 0:02:43.2]} 13... f5 {[%clk 0:02:24.6]} 14.
Qh6 {[%clk 0:02:28.5]} 14... Bd7 {[%clk 0:02:16.5]} 15. Nf3 {[%clk 0:02:21]}
15... Qb6 {[%clk 0:02:14]} 16. Rb1 {[%clk 0:02:21]} 16... c4 {[%clk 0:02:10.4]}
17. Be2 {[%clk 0:02:19]} 17... Bf6 {[%clk 0:01:59.9]} 18. O-O {[%clk 0:02:09.6]}
18... Kf7 {[%clk 0:00:44]} 19. h5 {[%clk 0:01:53]} 19... Bg7 {[%clk 0:00:35.7]}
20. hxg6+ {[%clk 0:01:40.7]} 20... hxg6 {[%clk 0:00:36.8]} 21. Qf4 {[%clk
0:01:40.7]} 21... Bf6 {[%clk 0:00:21.8]} 22. Ne5+ {[%clk 0:01:38.8]} 22... Bxe5
{[%clk 0:00:21.1]} 23. Qxe5 {[%clk 0:01:39.8]} 23... Rh7 {[%clk 0:00:21.8]} 24.
f3 {[%clk 0:01:39.1]} 24... Rah8 {[%clk 0:00:23.2]} 25. Kf2 {[%clk 0:01:39.9]}
25... Qa6 {[%clk 0:00:22.8]} 26. b3 {[%clk 0:01:37.8]} 26... Qxa2 {[%clk
0:00:23.5]} 27. bxc4 {[%clk 0:01:36.6]} 27... Bc6 {[%clk 0:00:24.1]} 28. cxd5
{[%clk 0:01:35.4]} 28... Bxd5 {[%clk 0:00:26]} 29. c4 {[%clk 0:01:34.1]} 29...
Bc6 {[%clk 0:00:23.4]} 30. Rfd1 {[%clk 0:01:32.7]} 30... g5 {[%clk 0:00:20.2]}
31. Rd6 {[%clk 0:01:15.2]} 31... Re8 {[%clk 0:00:21.1]} 32. Rxc6 {[%clk
0:01:13.8]} 32... Qxb1 {[%clk 0:00:19.9]} 33. Rc7+ {[%clk 0:01:14.6]} 33... Re7
{[%clk 0:00:21]} 34. Rxe7+ {[%clk 0:01:15.4]} 34... Kxe7 {[%clk 0:00:22.9]} 35.
Qc7+ {[%clk 0:01:16.9]} 1-0

[Event "*** Titled Tuesday Blitz"]
[Site "Chess.com"]
[Date "2018.12.04"]
[Round "1"]
[White "VitaliyBernadskiy"]
[Black "evgenyermolaev"]
[Result "0-1"]
[WhiteElo "2713"]
[BlackElo "2411"]
[TimeControl "180+2"]
[EndTime "13:07:05 PST"]
[Termination "evgenyermolaev won by resignation"]

1. d4 {[%clk 0:02:53.3]} 1... Nf6 {[%clk 0:03:00.8]} 2. Nf3 {[%clk 0:02:55.1]}
2... c5 {[%clk 0:03:01.9]} 3. c3 {[%clk 0:02:55.9]} 3... e6 {[%clk 0:03:00.6]}
4. Bf4 {[%clk 0:02:55.8]} 4... b6 {[%clk 0:03:00.9]} 5. e3 {[%clk 0:02:56.7]}
5... Be7 {[%clk 0:03:01.7]} 6. Nbd2 {[%clk 0:02:57.8]} 6... O-O {[%clk
0:03:02.8]} 7. h3 {[%clk 0:02:58.8]} 7... d6 {[%clk 0:03:04.3]} 8. Bd3 {[%clk
0:02:59.4]} 8... Ba6 {[%clk 0:03:05.6]} 9. Bxa6 {[%clk 0:02:58.6]} 9... Nxa6
{[%clk 0:03:07.5]} 10. Qe2 {[%clk 0:03:00]} 10... Nc7 {[%clk 0:03:08.5]} 11. e4
{[%clk 0:03:00.6]} 11... d5 {[%clk 0:02:42.6]} 12. e5 {[%clk 0:02:59]} 12... Nd7
{[%clk 0:02:44]} 13. O-O {[%clk 0:02:59.4]} 13... c4 {[%clk 0:02:42.3]} 14. Nh2
{[%clk 0:02:51.7]} 14... b5 {[%clk 0:02:43]} 15. Qg4 {[%clk 0:02:50.1]} 15...
Kh8 {[%clk 0:02:41.5]} 16. Ndf3 {[%clk 0:02:46.4]} 16... a5 {[%clk 0:02:42]} 17.
Rfe1 {[%clk 0:02:43.7]} 17... b4 {[%clk 0:02:42.9]} 18. Re3 {[%clk 0:02:44.4]}
18... a4 {[%clk 0:02:40]} 19. a3 {[%clk 0:02:42]} 19... bxa3 {[%clk 0:02:40.3]}
20. bxa3 {[%clk 0:02:43.9]} 20... Nb5 {[%clk 0:02:41.9]} 21. Ng5 {[%clk
0:02:43.7]} 21... h6 {[%clk 0:02:23.2]} 22. Ngf3 {[%clk 0:02:41.9]} 22... Nxa3
{[%clk 0:02:13.9]} 23. Qh5 {[%clk 0:02:40.9]} 23... Nc2 {[%clk 0:02:03.3]} 24.
Ng4 {[%clk 0:02:27.1]} 24... Nxe3 {[%clk 0:01:27]} 25. fxe3 {[%clk 0:02:22.4]}
25... f5 {[%clk 0:00:50.3]} 26. Nxh6 {[%clk 0:02:17.8]} 26... Qe8 {[%clk
0:00:51.3]} 27. Nf7+ {[%clk 0:01:57.4]} 27... Kg8 {[%clk 0:00:52.4]} 28. Nh6+
{[%clk 0:01:53]} 28... gxh6 {[%clk 0:00:45.4]} 29. Qxh6 {[%clk 0:01:54.9]} 29...
Qf7 {[%clk 0:00:29]} 30. g4 {[%clk 0:01:55.8]} 30... Ra6 {[%clk 0:00:23]} 31.
Kh2 {[%clk 0:01:49.8]} 31... Qh7 {[%clk 0:00:20.7]} 32. gxf5 {[%clk 0:01:41.6]}
32... Qxh6 {[%clk 0:00:22.4]} 33. Bxh6 {[%clk 0:01:43.5]} 33... Rxf5 {[%clk
0:00:23.8]} 34. Rg1+ {[%clk 0:01:44.6]} 34... Kf7 {[%clk 0:00:21.5]} 35. Rg7+
{[%clk 0:01:43.9]} 35... Ke8 {[%clk 0:00:23.2]} 36. Ng5 {[%clk 0:01:45]} 36...
Bf8 {[%clk 0:00:18.1]} 37. Rg8 {[%clk 0:01:44.8]} 37... a3 {[%clk 0:00:18.2]}
38. Nh7 {[%clk 0:01:43.6]} 38... a2 {[%clk 0:00:19.5]} 39. Nf6+ {[%clk
0:01:44.1]} 39... Rxf6 {[%clk 0:00:20.9]} 40. exf6 {[%clk 0:01:45.2]} 40... a1=Q
{[%clk 0:00:22]} 0-1

[Event "*** Titled Tuesday Blitz"]
[Site "Chess.com"]
[Date "2018.12.04"]
[Round "1"]
[White "Frolik67"]
[Black "catalin009"]
[Result "1-0"]
[WhiteElo "2651"]
[BlackElo "2338"]
[TimeControl "180+2"]
[EndTime "13:07:06 PST"]
[Termination "Frolik67 won by resignation"]

1. e4 {[%clk 0:02:55.8]} 1... c5 {[%clk 0:01:40.7]} 2. Nf3 {[%clk 0:02:25.9]}
2... Nc6 {[%clk 0:01:40.1]} 3. Bb5 {[%clk 0:02:25.7]} 3... g6 {[%clk 0:01:41.3]}
4. O-O {[%clk 0:02:25.4]} 4... Bg7 {[%clk 0:01:40.5]} 5. c3 {[%clk 0:02:26.7]}
5... Nf6 {[%clk 0:01:41.1]} 6. Re1 {[%clk 0:02:23.2]} 6... O-O {[%clk
0:01:40.8]} 7. d3 {[%clk 0:02:22.6]} 7... d6 {[%clk 0:01:40.7]} 8. h3 {[%clk
0:02:22.1]} 8... e5 {[%clk 0:01:34.8]} 9. Na3 {[%clk 0:02:21.4]} 9... Ne7 {[%clk
0:01:22.4]} 10. d4 {[%clk 0:02:20.4]} 10... Nd7 {[%clk 0:01:19.3]} 11. Nc4
{[%clk 0:02:15.9]} 11... Qc7 {[%clk 0:01:15.7]} 12. dxe5 {[%clk 0:02:10.9]}
12... dxe5 {[%clk 0:01:13.1]} 13. Bxd7 {[%clk 0:02:01.5]} 13... Bxd7 {[%clk
0:01:12]} 14. Nfxe5 {[%clk 0:02:00.9]} 14... Be6 {[%clk 0:01:00.1]} 15. Bf4
{[%clk 0:01:48.4]} 15... Bxc4 {[%clk 0:00:54.8]} 16. Nxg6 {[%clk 0:01:45.6]}
16... Qd8 {[%clk 0:00:34.3]} 17. Qxd8 {[%clk 0:01:43]} 17... Rfxd8 {[%clk
0:00:33.2]} 18. Nxe7+ {[%clk 0:01:43.8]} 18... Kf8 {[%clk 0:00:35.1]} 19. Nf5
{[%clk 0:01:44.4]} 19... Bf6 {[%clk 0:00:33.8]} 20. Rad1 {[%clk 0:01:38.9]}
20... Bxa2 {[%clk 0:00:33.4]} 21. Bd6+ {[%clk 0:01:39.1]} 21... Ke8 {[%clk
0:00:28.8]} 22. Bxc5 {[%clk 0:01:39.8]} 22... b6 {[%clk 0:00:25.6]} 23. Bd4
{[%clk 0:01:31.6]} 23... Bxd4 {[%clk 0:00:22.1]} 24. cxd4 {[%clk 0:01:31.7]}
24... a5 {[%clk 0:00:23]} 25. d5 {[%clk 0:01:31.3]} 25... b5 {[%clk 0:00:23.8]}
26. d6 {[%clk 0:01:30]} 26... a4 {[%clk 0:00:22.7]} 27. e5 {[%clk 0:01:29.2]}
27... b4 {[%clk 0:00:23.6]} 28. Nd4 {[%clk 0:01:30.2]} 28... a3 {[%clk
0:00:20.8]} 29. b3 {[%clk 0:01:29.8]} 29... Rdc8 {[%clk 0:00:20.8]} 30. Re2
{[%clk 0:01:25.7]} 30... Bxb3 {[%clk 0:00:17.2]} 31. Nxb3 {[%clk 0:01:26.6]}
31... Rc3 {[%clk 0:00:19.1]} 32. Nd4 {[%clk 0:01:22.9]} 32... b3 {[%clk
0:00:19.3]} 33. Nb5 {[%clk 0:01:21]} 33... Rc5 {[%clk 0:00:17.4]} 34. Nc7+
{[%clk 0:01:21.8]} 34... Rxc7 {[%clk 0:00:17.1]} 35. dxc7 {[%clk 0:01:22.9]}
35... a2 {[%clk 0:00:19]} 36. Kh2 {[%clk 0:01:21.1]} 36... Rc8 {[%clk
0:00:18.9]} 37. Rb2 {[%clk 0:01:21.3]} 37... Rxc7 {[%clk 0:00:18.5]} 38. Rxb3
{[%clk 0:01:22.6]} 38... Ra7 {[%clk 0:00:20.4]} 39. Ra1 {[%clk 0:01:23.3]} 1-0

[Event "*** Titled Tuesday Blitz"]
[Site "Chess.com"]
[Date "2018.12.04"]
[Round "1"]
[White "SCIM"]
[Black "TigranLPetrosyan"]
[Result "0-1"]
[WhiteElo "2424"]
[BlackElo "2816"]
[TimeControl "180+2"]
[EndTime "13:07:07 PST"]
[Termination "TigranLPetrosyan won by resignation"]

1. d4 {[%clk 0:03:01.2]} 1... g6 {[%clk 0:03:01]} 2. c4 {[%clk 0:03:01.7]} 2...
Bg7 {[%clk 0:03:02.2]} 3. Nc3 {[%clk 0:03:03]} 3... d6 {[%clk 0:03:03.2]} 4. e4
{[%clk 0:03:03.2]} 4... Nf6 {[%clk 0:03:04.1]} 5. f3 {[%clk 0:03:04.1]} 5... O-O
{[%clk 0:03:05.5]} 6. Bg5 {[%clk 0:03:05]} 6... Nc6 {[%clk 0:03:06.3]} 7. Nge2
{[%clk 0:03:04.5]} 7... e5 {[%clk 0:03:06.3]} 8. d5 {[%clk 0:03:03.5]} 8... Ne7
{[%clk 0:02:57.7]} 9. Qd2 {[%clk 0:03:02.8]} 9... a6 {[%clk 0:02:56.3]} 10. g4
{[%clk 0:02:36.1]} 10... c5 {[%clk 0:02:37.1]} 11. Ng3 {[%clk 0:02:25.7]} 11...
Ne8 {[%clk 0:02:16.6]} 12. h4 {[%clk 0:02:21.7]} 12... f6 {[%clk 0:02:11.3]} 13.
Be3 {[%clk 0:02:22.1]} 13... f5 {[%clk 0:02:11.1]} 14. gxf5 {[%clk 0:02:18]}
14... gxf5 {[%clk 0:02:13]} 15. Nh5 {[%clk 0:01:48]} 15... f4 {[%clk 0:01:59.3]}
16. Bf2 {[%clk 0:01:48.6]} 16... Bh6 {[%clk 0:01:51]} 17. O-O-O {[%clk
0:01:41.3]} 17... Ng6 {[%clk 0:01:45.8]} 18. Bh3 {[%clk 0:01:36]} 18... Bxh3
{[%clk 0:01:45.7]} 19. Rxh3 {[%clk 0:01:36.5]} 19... Qd7 {[%clk 0:01:47.6]} 20.
Rh2 {[%clk 0:01:35]} 20... b5 {[%clk 0:01:48.2]} 21. Rg1 {[%clk 0:01:28.9]}
21... Kh8 {[%clk 0:01:39.8]} 22. Rhg2 {[%clk 0:01:15.8]} 22... b4 {[%clk
0:01:39.3]} 23. Nd1 {[%clk 0:01:08.9]} 23... Qf7 {[%clk 0:01:37.9]} 24. Be1
{[%clk 0:00:43.1]} 24... a5 {[%clk 0:01:07.4]} 25. Kb1 {[%clk 0:00:33.4]} 25...
a4 {[%clk 0:01:07.8]} 26. Rh1 {[%clk 0:00:26.7]} 26... a3 {[%clk 0:01:08.5]} 27.
b3 {[%clk 0:00:26.5]} 27... Rg8 {[%clk 0:01:06.4]} 28. Nf2 {[%clk 0:00:25.3]}
28... Ne7 {[%clk 0:01:05.3]} 29. Rxg8+ {[%clk 0:00:21.2]} 29... Nxg8 {[%clk
0:01:04]} 30. Ng4 {[%clk 0:00:15.6]} 30... Qxh5 {[%clk 0:01:04.7]} 31. Bf2
{[%clk 0:00:17.3]} 31... Nef6 {[%clk 0:01:05.5]} 0-1

[Event "*** Titled Tuesday Blitz"]
[Site "Chess.com"]
[Date "2018.12.04"]
[Round "1"]
[White "Hydrargyrum_Girl"]
[Black "artichaud"]
[Result "1-0"]
[WhiteElo "2523"]
[BlackElo "2134"]
[TimeControl "180+2"]
[EndTime "13:07:07 PST"]
[Termination "Hydrargyrum_Girl won by resignation"]

1. e4 {[%clk 0:03:01.7]} 1... e6 {[%clk 0:02:49.9]} 2. d4 {[%clk 0:03:01.7]}
2... d5 {[%clk 0:02:50]} 3. Nd2 {[%clk 0:03:03.6]} 3... Nc6 {[%clk 0:02:49.5]}
4. Ngf3 {[%clk 0:03:03.7]} 4... Nf6 {[%clk 0:02:49.3]} 5. e5 {[%clk 0:03:02.1]}
5... Nd7 {[%clk 0:02:50.2]} 6. Nb3 {[%clk 0:03:02.7]} 6... a5 {[%clk 0:02:48.6]}
7. a4 {[%clk 0:02:58.8]} 7... b6 {[%clk 0:02:49.2]} 8. h4 {[%clk 0:02:59.2]}
8... Bb7 {[%clk 0:02:46.4]} 9. h5 {[%clk 0:02:59.8]} 9... h6 {[%clk 0:02:46.6]}
10. g4 {[%clk 0:02:59.5]} 10... Be7 {[%clk 0:02:45.1]} 11. c3 {[%clk 0:02:58.2]}
11... Qc8 {[%clk 0:02:44]} 12. Rg1 {[%clk 0:02:59.2]} 12... Ba6 {[%clk
0:02:44.1]} 13. g5 {[%clk 0:02:59.8]} 13... Bxf1 {[%clk 0:02:44]} 14. Kxf1
{[%clk 0:02:54.3]} 14... Qa6+ {[%clk 0:02:32.7]} 15. Qe2 {[%clk 0:02:52.8]}
15... Qxe2+ {[%clk 0:02:29.5]} 16. Kxe2 {[%clk 0:02:54.7]} 16... hxg5 {[%clk
0:02:30.4]} 17. Bxg5 {[%clk 0:02:53.4]} 17... Rxh5 {[%clk 0:02:03.1]} 18. Bxe7
{[%clk 0:02:49.8]} 18... Kxe7 {[%clk 0:02:02.8]} 19. Rxg7 {[%clk 0:02:50.3]}
19... Rah8 {[%clk 0:02:00.6]} 20. Rag1 {[%clk 0:02:48]} 20... Nf8 {[%clk
0:01:57]} 21. Ng5 {[%clk 0:02:45.5]} 21... Nd8 {[%clk 0:01:56.3]} 22. Nc1 {[%clk
0:02:40.5]} 22... Rh1 {[%clk 0:01:56.1]} 23. Nf3 {[%clk 0:02:36.2]} 23... Rxg1
{[%clk 0:01:56.1]} 24. Rxg1 {[%clk 0:02:32.9]} 24... Ng6 {[%clk 0:01:57.1]} 25.
Nd3 {[%clk 0:02:31.3]} 25... Nb7 {[%clk 0:01:47.1]} 26. b4 {[%clk 0:02:23.9]}
26... Ra8 {[%clk 0:01:40.3]} 27. b5 {[%clk 0:02:20.6]} 27... Rc8 {[%clk
0:01:40.5]} 28. Rh1 {[%clk 0:02:18.7]} 28... Rh8 {[%clk 0:01:39.6]} 29. Rg1
{[%clk 0:02:13.5]} 29... Nd8 {[%clk 0:01:40.5]} 30. Nfe1 {[%clk 0:02:08.1]}
30... Rh3 {[%clk 0:01:37.9]} 31. Nc2 {[%clk 0:02:06.8]} 31... Kd7 {[%clk
0:01:20.1]} 32. Ne3 {[%clk 0:02:04.3]} 32... c6 {[%clk 0:01:19.2]} 33. Ng4
{[%clk 0:02:02.9]} 33... cxb5 {[%clk 0:01:18.1]} 34. axb5 {[%clk 0:02:03.4]}
34... Ke7 {[%clk 0:01:14.8]} 35. Rc1 {[%clk 0:01:58.2]} 35... Rh4 {[%clk
0:01:11.7]} 36. Nf6 {[%clk 0:01:58.6]} 36... Nb7 {[%clk 0:00:59.8]} 37. f3
{[%clk 0:01:55.2]} 37... Nd8 {[%clk 0:00:59.5]} 38. Ng4 {[%clk 0:01:55.3]} 38...
Nb7 {[%clk 0:00:58]} 39. c4 {[%clk 0:01:54.7]} 39... Nd8 {[%clk 0:00:29.8]} 40.
c5 {[%clk 0:01:49.7]} 40... bxc5 {[%clk 0:00:26.5]} 41. dxc5 {[%clk 0:01:51.6]}
41... Kd7 {[%clk 0:00:19.8]} 42. Ra1 {[%clk 0:01:50.5]} 1-0

[Event "*** Titled Tuesday Blitz"]
[Site "Chess.com"]
[Date "2018.12.04"]
[Round "1"]
[White "NateSolon"]
[Black "sandager"]
[Result "1-0"]
[WhiteElo "2483"]
[BlackElo "1982"]
[TimeControl "180+2"]
[EndTime "13:07:08 PST"]
[Termination "NateSolon won on time"]

1. e4 {[%clk 0:03:01]} 1... e5 {[%clk 0:03:00.5]} 2. Nf3 {[%clk 0:03:01.3]} 2...
Nc6 {[%clk 0:03:00.3]} 3. Bc4 {[%clk 0:03:01.5]} 3... Bc5 {[%clk 0:03:00.1]} 4.
c3 {[%clk 0:03:02.1]} 4... Nf6 {[%clk 0:03:00]} 5. d3 {[%clk 0:03:03.3]} 5... d6
{[%clk 0:02:59.9]} 6. O-O {[%clk 0:03:03.4]} 6... O-O {[%clk 0:03:01]} 7. Re1
{[%clk 0:02:58]} 7... Re8 {[%clk 0:02:51.9]} 8. h3 {[%clk 0:02:55]} 8... h6
{[%clk 0:02:51.6]} 9. a4 {[%clk 0:02:52.5]} 9... a6 {[%clk 0:02:49.4]} 10. Nbd2
{[%clk 0:02:52.6]} 10... Be6 {[%clk 0:02:48.1]} 11. Bxe6 {[%clk 0:02:47.1]}
11... Rxe6 {[%clk 0:02:38.1]} 12. Nf1 {[%clk 0:02:42.9]} 12... Re8 {[%clk
0:02:17.1]} 13. Ng3 {[%clk 0:02:40]} 13... Bb6 {[%clk 0:02:15.1]} 14. Nf5 {[%clk
0:02:29.9]} 14... d5 {[%clk 0:02:15.5]} 15. Qe2 {[%clk 0:02:27.1]} 15... Qd7
{[%clk 0:02:07.2]} 16. Nh2 {[%clk 0:02:22]} 16... Rad8 {[%clk 0:01:57.1]} 17.
Ng4 {[%clk 0:02:21.7]} 17... Nh7 {[%clk 0:01:34.9]} 18. Qf3 {[%clk 0:02:11.1]}
18... Re6 {[%clk 0:01:07.7]} 19. Qg3 {[%clk 0:02:03.5]} 19... Rg6 {[%clk
0:00:48.7]} 20. Qf3 {[%clk 0:01:49.7]} 20... dxe4 {[%clk 0:00:45.4]} 21. dxe4
{[%clk 0:01:49.8]} 21... Qd3 {[%clk 0:00:32]} 22. Be3 {[%clk 0:01:47.5]} 22...
Ng5 {[%clk 0:00:28]} 23. Qg3 {[%clk 0:01:20.7]} 23... Nxe4 {[%clk 0:00:25.3]}
24. Qh4 {[%clk 0:01:21.7]} 24... Ng5 {[%clk 0:00:09.3]} 25. Nfxh6+ {[%clk
0:00:52]} 25... gxh6 {[%clk 0:00:08.1]} 26. Nxh6+ {[%clk 0:00:53.9]} 26... Kg7
{[%clk 0:00:06.5]} 27. Bxg5 {[%clk 0:00:55.8]} 27... Rh8 {[%clk 0:00:05.8]} 28.
Rad1 {[%clk 0:00:55.4]} 1-0